bitfinex/quotes_ETHUSD_20240718
["timestamp","ask_amount","ask_price","bid_price","bid_amount"]
[1721316145151,2.93715,3404.7,3403.6,0.04987474]
[1721316145361,2.93756,3404.2,3404.0,0.04967782]
[1721316145684,2.93669,3405.2,3403.0,5.22487]
[1721316145685,2.93763,3404.1,3403.0,2.2863]
[1721316145864,0.58751,3404.0,3403.1,2.93849]
[1721316146070,0.58751,3404.0,3403.2,2.93841]
[1721316146263,2.93705,3404.8,3403.1,0.04949006]
[1721316146463,2.9361,3405.9,3403.3,0.04946945]
[1721316146646,2.9361,3405.9,3403.1,2.93844]
[1721316146647,2.937,3404.9,3403.9,2.93778]
[1721316146958,2.937,3404.9,3403.0,2.2863]
[1721316146959,2.93677,3405.1,3404.0,0.04912479]
[1721316147148,2.93651,3405.4,3404.0,0.04912479]
[1721316147149,2.93698,3404.9,3404.0,0.04912479]
[1721316147353,0.293698,3404.8,3404.0,0.04912479]
[1721316147676,0.293698,3404.8,3404.0,2.93768]
[1721316148010,0.293698,3404.8,3403.9,2.9378]
[1721316148011,0.293698,3404.8,3404.1,0.04902854]
[1721316148210,2.93717,3404.7,3404.1,0.04902854]
[1721316148360,3.230728,3404.8,3403.7,2.93796]
[1721316148561,5.93623,3405.8,3403.6,2.938]
[1721316148562,0.3230728,3404.7,3403.6,2.938]
[1721316148771,3.0,3405.3,3403.8,0.04917622]
[1721316148975,2.93627,3405.7,3403.9,2.93772]
[1721316148976,2.93685,3405.0,3403.9,2.93772]
[1721316149178,3.0,3405.4,3404.3,2.93745]
[1721316149179,2.93668,3405.2,3404.3,2.93745]
[1721316149399,2.93668,3405.2,3404.0,2.93771]
[1721316149400,2.93618,3405.8,3404.2,2.3902]
[1721316149563,2.936,3406.0,3404.8,2.93702]
[1721316149760,0.2936,3405.9,3404.8,2.93702]
[1721316149971,0.2936,3405.9,3405.0,2.9368]
[1721316150202,0.2936,3405.9,3405.3,2.93657]
[1721316150407,2.93576,3406.3,3405.2,2.93661]
[1721316150562,5.3456,3407.4,3404.2,5.32774]
[1721316150563,2.93548,3406.6,3405.4,5.358883]
[1721316150762,2.4108,3407.4,3405.4,2.374]
[1721316150763,2.93528,3406.9,3405.4,2.374]
[1721316150963,2.93525,3406.9,3405.9,2.93607]
[1721316151162,2.93555,3406.6,3405.6,2.93632]
[1721316151411,0.293555,3406.5,3406.0,0.04783485]
[1721316151571,2.93567,3406.4,3405.4,2.374]
[1721316151773,2.93582,3406.2,3406.1,0.04778569]
[1721316151973,2.93582,3406.2,3405.0,2.93684]
[1721316151974,2.93605,3406.0,3405.0,2.93683]
[1721316152604,2.93668,3405.2,3405.1,0.04827749]
[1721316152810,2.93655,3405.4,3405.1,0.04827749]
[1721316152962,0.293655,3405.3,3404.2,2.4791]
[1721316153165,7.28,3407.1,3404.2,2.4791]
[1721316153166,2.93576,3406.3,3404.2,2.4791]
[1721316153364,2.93665,3405.3,3404.3,2.98612113]
[1721316153897,2.93669,3405.2,3404.3,0.04867113]
[1721316154066,2.93709,3404.8,3404.3,0.04867113]
[1721316154269,2.93617,3405.8,3404.2,2.4791]
[1721316154270,2.93676,3405.2,3404.2,2.4791]
[1721316154582,3.230446,3405.1,3404.3,0.0487798]
[1721316155809,2.93564,3406.5,3404.5,2.93727]
[1721316155963,2.93565,3406.4,3404.4,2.93736]
[1721316156159,2.93692,3405.0,3404.6,0.04867182]
[1721316156361,2.93674,3405.2,3404.5,0.048699]
[1721316156603,0.58734,3405.1,3404.7,0.04860058]
[1721316156915,0.58734,3405.1,3404.2,2.4791]
[1721316156916,2.93687,3405.0,3404.8,0.04855138]
[1721316157065,2.93673,3405.2,3404.8,0.04855138]
[1721316157404,2.93673,3405.2,3404.2,5.41662]
[1721316157405,3.0,3405.9,3404.9,0.04850217]
[1721316157576,2.9363,3405.7,3404.9,0.04850217]
[1721316157784,3.0,3405.6,3404.2,2.4791]
[1721316158095,2.9363,3405.7,3404.2,2.4791]
[1721316158096,2.936,3406.0,3405.0,2.93684]
[1721316158298,5.39217,3406.6,3404.7,2.93709]
[1721316158299,2.93617,3405.8,3404.7,2.93709]
[1721316158612,2.93631,3405.7,3404.7,2.93709]
[1721316158800,2.93649,3405.5,3404.8,0.04852787]
[1721316158963,2.4567,3406.6,3404.8,0.04852787]
[1721316159164,2.4567,3406.6,3404.2,2.4791]
[1721316159165,2.93661,3405.3,3404.2,5.41658]
[1721316159479,2.93642,3405.5,3404.4,2.93731]
[1721316159681,2.93642,3405.5,3404.5,2.9859455]
[1721316159900,2.9364,3405.6,3404.6,2.9372]
[1721316160105,2.9364,3405.6,3404.7,0.04857708]
[1721316160305,0.587268,3405.5,3404.7,0.04857708]
[1721316160515,2.9364,3405.6,3404.7,2.98568708]
[1721316160804,2.93642,3405.6,3404.7,0.04857708]
[1721316160968,3.0,3406.1,3404.7,0.04857708]
[1721316160969,3.0,3405.5,3404.7,0.04857708]
[1721316161166,2.93608,3405.9,3404.2,2.4791]
[1721316161167,2.93691,3405.0,3404.2,2.4791]
[1721316161583,2.93691,3405.0,3404.3,0.04877393]
[1721316161779,0.293691,3404.9,3404.3,0.04877393]
[1721316162021,2.93721,3404.6,3404.3,0.04877393]
[1721316162214,3.0,3405.7,3403.9,2.93773]
[1721316162215,2.93703,3404.8,3403.9,2.93773]
[1721316162413,3.0,3405.7,3403.8,2.93783]
[1721316162414,2.937,3404.9,3403.8,2.93783]
[1721316162627,2.93711,3404.7,3404.0,0.04892159]
[1721316162790,2.93711,3404.7,3403.9,0.04897082]
[1721316162991,3.524521,3404.7,3404.1,0.04887237]
[1721316163190,3.524521,3404.7,3404.0,0.04886282]
[1721316163415,3.524521,3404.7,3404.2,0.04876438]
[1721316163639,0.587411,3404.7,3404.1,0.0488136]
[1721316163782,2.93694,3404.9,3404.3,0.04871516]
[1721316163783,2.93708,3404.8,3404.3,0.04871516]
[1721316163988,2.93708,3404.8,3404.2,0.04876438]
[1721316164209,3.0,3405.7,3404.4,0.04866594]
[1721316164210,2.93679,3405.1,3404.4,0.04866594]
[1721316164421,2.93671,3405.2,3404.3,2.98616516]
[1721316164591,2.93644,3405.5,3404.6,2.9372]
[1721316164786,2.93627,3405.7,3404.7,5.37551]
[1721316164993,2.93627,3405.7,3404.8,2.93701]
[1721316165303,2.93597,3406.1,3404.9,0.0484816]
[1721316165494,3.0,3406.3,3404.9,0.0484816]
[1721316165495,2.93622,3405.8,3404.9,0.0484816]
[1721316165693,3.529607,3406.0,3404.9,0.0484816]
[1721316165896,3.529607,3406.0,3405.0,2.9368]
[1721316166123,3.529607,3406.0,3405.1,2.98510033]
[1721316166327,2.93582,3406.2,3405.1,0.04833033]
[1721316166533,2.93579,3406.3,3405.3,2.93659]
[1721316166688,2.93579,3406.3,3405.4,2.98461932]
[1721316166894,3.474837,3406.5,3405.6,2.93631]
[1721316167334,2.93539,3406.7,3405.7,0.04796178]
[1721316167631,2.9355,3406.6,3405.6,2.93631]
[1721316167792,2.93557,3406.5,3405.6,2.93631]
[1721316167991,2.93539,3406.7,3405.7,0.0478869]
[1721316168200,2.93525,3406.9,3405.9,2.93602]
[1721316168401,2.93507,3407.1,3405.9,0.59199869]
[1721316168608,2.93488,3407.3,3406.2,2.93574]
[1721316168808,2.93504,3407.2,3406.2,2.93574]
[1721316169015,2.93488,3407.3,3406.3,2.98326813]
[1721316169187,2.93509,3407.1,3406.3,0.04755813]
[1721316169396,2.93488,3407.3,3406.3,0.04755813]
[1721316169613,2.93496,3407.2,3406.2,2.93577]
[1721316169818,2.93496,3407.2,3406.2,3.522945]
[1721316170123,2.93505,3407.1,3406.3,0.04755666]
[1721316170327,2.93448,3407.8,3406.3,0.04755666]
[1721316170513,2.9352,3407.0,3406.0,2.93597]
[1721316170716,2.93501,3407.2,3405.5,2.2968]
[1721316170717,2.93501,3407.2,3406.2,2.93579]
[1721316170915,2.93482,3407.4,3406.3,3.28157116]
[1721316171121,2.93482,3407.4,3406.6,2.4583]
[1721316171639,2.93482,3407.4,3406.7,0.04729254]
[1721316171940,2.94,3407.6,3406.7,0.04729254]
[1721316172096,2.94,3407.6,3405.3,2.93658]
[1721316172097,2.93561,3406.5,3405.3,2.93658]
[1721316172295,2.93472,3407.5,3405.5,2.93636]
[1721316172296,2.93565,3406.4,3405.5,2.93636]
[1721316172490,2.93565,3406.4,3405.4,0.522928]
[1721316172491,2.93556,3406.5,3405.6,0.04589849]
[1721316172773,2.93556,3406.5,3405.4,0.522928]
[1721316172774,2.93565,3406.4,3405.4,3.459378]
[1721316172898,2.93519,3407.0,3405.7,0.04584931]
[1721316172899,2.93516,3407.0,3405.7,0.04584931]
[1721316173238,2.93516,3407.0,3405.2,2.2927]
[1721316173239,2.93599,3406.1,3405.2,2.2927]
[1721316173433,2.93599,3406.1,3405.2,5.22938]
[1721316173595,2.93599,3406.1,3405.3,0.04604604]
[1721316174016,2.93582,3406.2,3405.3,2.98263604]
[1721316174305,3.0,3406.8,3405.3,0.86726464]
[1721316174502,2.93613,3405.9,3405.3,0.04604604]
[1721316174720,2.93591,3406.1,3405.3,0.04604604]
[1721316174944,2.93556,3406.5,3405.3,0.04604604]
[1721316175117,2.93587,3406.2,3405.3,0.04604604]
[1721316175290,2.93593,3406.1,3405.3,0.57359664]
[1721316175495,2.93601,3406.0,3405.3,0.57359664]
[1721316175735,2.93623,3405.8,3405.3,0.04604604]
[1721316175941,2.93626,3405.7,3405.3,0.04604604]
[1721316176229,2.93626,3405.7,3404.8,2.93697]
[1721316176428,2.93626,3405.7,3405.4,0.04599685]
[1721316176641,2.93626,3405.7,3404.6,5.20817]
[1721316176642,2.93608,3405.9,3404.9,2.93693]
[1721316176949,2.93617,3405.8,3405.5,0.04594767]
[1721316177234,2.93651,3405.4,3404.6,2.271]
[1721316177644,2.93651,3405.4,3404.7,0.04634122]
[1721316178134,5.93565,3406.4,3404.7,0.04634122]
[1721316178135,2.93628,3405.7,3404.7,0.04634122]
[1721316178340,2.93628,3405.7,3404.7,2.98345122]
[1721316178341,2.93635,3405.6,3404.7,2.98345122]
[1721316178523,2.93611,3405.9,3404.8,3.46245512]
[1721316178720,2.93611,3405.9,3404.9,2.93694]
[1721316179046,2.93623,3405.8,3404.9,2.98318282]
[1721316179199,2.93604,3406.0,3404.9,2.98318282]
[1721316179401,2.93604,3406.0,3405.1,2.93674]
[1721316179601,2.93625,3405.7,3404.9,0.04624282]
[1721316179824,0.293604,3406.0,3405.2,0.04609523]
[1721316179825,2.93636,3405.6,3405.2,0.04609523]
[1721316180036,2.93643,3405.5,3404.6,5.20818]
[1721316180235,0.293604,3406.0,3404.6,2.271]
[1721316180550,3.66439459,3406.8,3405.0,2.93684]
[1721316180551,2.93616,3405.8,3405.0,2.93684]
[1721316180702,2.93595,3406.1,3405.0,2.93684]
[1721316180703,2.93605,3406.0,3405.0,2.93684]
[1721316181003,2.93605,3406.0,3404.6,2.271]
[1721316181004,2.93646,3405.5,3405.1,0.04614442]
[1721316181406,2.93636,3405.6,3404.7,2.93706]
[1721316181645,2.93626,3405.7,3405.2,0.04609523]
[1721316181646,2.93645,3405.5,3405.2,0.04609523]
[1721316181803,2.93645,3405.5,3404.7,0.520806]
[1721316181804,2.93651,3405.4,3404.7,0.520806]
[1721316181997,2.93651,3405.4,3405.3,0.04604604]
[1721316182203,2.93661,3405.3,3404.6,2.271]
[1721316182432,2.93645,3405.5,3404.6,2.271]
[1721316182752,2.93645,3405.5,3404.7,0.04634122]
[1721316182928,2.93627,3405.7,3404.7,0.04634122]
[1721316183101,2.93627,3405.7,3404.8,2.93697]
[1721316183303,2.93611,3405.9,3404.7,0.23173412]
[1721316183304,2.93611,3405.9,3405.0,2.93684]
[1721316183528,2.93611,3405.9,3405.1,0.05872679]
[1721316183748,2.93599,3406.0,3405.1,2.98329484]
[1721316184516,2.93609,3405.9,3405.1,0.04658484]
[1721316184734,3.89234594,3406.3,3405.1,3.23510248]
[1721316184735,0.59489729,3406.2,3405.1,3.23510248]
[1721316184960,1.57038193,3406.2,3405.1,3.23510248]
[1721316185244,2.93631,3405.7,3405.2,0.04653565]
[1721316185738,2.93613,3405.9,3404.9,2.93692]
[1721316185942,2.93617,3405.8,3404.9,2.93692]
[1721316186104,2.93639,3405.6,3405.0,0.04663404]
[1721316186306,2.93622,3405.8,3405.0,0.04663404]
[1721316186500,2.93625,3405.7,3405.0,0.04663404]
[1721316186706,2.93618,3405.8,3405.0,0.04663404]
[1721316187006,2.93631,3405.7,3405.1,0.04658484]
[1721316187219,2.93635,3405.6,3405.1,0.04658484]
[1721316187506,2.93635,3405.6,3404.7,0.23173412]
[1721316187507,3.523626,3405.6,3404.5,2.93725]
[1721316187701,2.93636,3405.6,3405.2,0.04653126]
[1721316187937,2.93636,3405.6,3404.5,2.93721]
[1721316187938,2.93642,3405.5,3404.7,2.93706]
[1721316188101,2.93642,3405.5,3405.3,0.04648207]
[1721316188302,2.93636,3405.6,3404.5,2.93721]
[1721316188303,2.93652,3405.4,3404.5,2.93721]
[1721316188700,2.93703,3404.8,3404.7,0.04677725]
[1721316188906,2.93703,3404.8,3404.0,2.468]
[1721316188907,2.93714,3404.7,3404.0,2.468]
[1721316189303,2.93739,3404.4,3404.1,0.04707254]
[1721316189630,2.93735,3404.5,3404.1,0.04707254]
[1721316189820,0.293703,3404.8,3404.1,0.04707254]
[1721316189821,2.93715,3404.7,3404.1,0.04707254]
[1721316190015,2.93733,3404.5,3404.1,0.04707254]
[1721316190222,0.59489729,3405.0,3404.1,0.29857979]
[1721316190436,10.83,3406.6,3404.4,2.93731]
[1721316190437,3.53151729,3405.3,3404.4,2.93731]
[1721316190759,2.93651,3405.4,3404.5,2.93725]
[1721316190901,2.93651,3405.4,3404.5,0.0469928]
[1721316191107,0.59489729,3405.6,3404.5,0.0469928]
[1721316191108,2.93693,3405.0,3404.5,0.0469928]
[1721316191349,2.93693,3405.0,3404.1,0.25150725]
[1721316191504,2.93693,3405.0,3404.6,0.04694359]
[1721316191712,2.93693,3405.0,3404.1,0.25150725]
[1721316191935,2.93664,3405.3,3404.7,0.04684167]
[1721316192160,2.93668,3405.2,3404.4,2.93735]
[1721316192327,3.53143729,3405.4,3404.8,0.04679246]
[1721316192530,3.53143729,3405.4,3404.4,2.93737]
[1721316192531,2.93674,3405.2,3404.4,2.93737]
[1721316192875,2.9362,3405.8,3405.0,2.93679]
[1721316192876,0.59489729,3405.8,3405.0,2.93679]
[1721316193017,2.93643,3405.5,3404.6,2.93714]
[1721316193218,0.44233632,3405.8,3405.1,0.04664194]
[1721316193219,2.93627,3405.7,3405.1,0.04664194]
[1721316193523,2.93627,3405.7,3404.8,2.93697]
[1721316193524,2.93631,3405.7,3404.8,2.93697]
[1721316193727,3.53099729,3405.9,3405.2,0.04659274]
[1721316193912,0.34470488,3405.8,3404.8,2.93695]
[1721316194107,2.93627,3405.7,3404.9,2.93693]
[1721316194349,2.93634,3405.6,3404.8,0.525235]
[1721316194662,3.53116729,3405.7,3404.9,0.04674033]
[1721316194818,2.93682,3405.1,3404.5,2.3154]
[1721316195015,2.93682,3405.1,3405.0,0.04659743]
[1721316195233,2.93682,3405.1,3404.0,2.9377]
[1721316195234,2.93672,3405.2,3403.9,2.3795]
[1721316195551,2.93713,3404.7,3403.9,2.3795]
[1721316195862,0.34481518,3404.6,3404.0,0.0456128]
[1721316196017,2.93708,3404.8,3404.0,0.0456128]
[1721316196212,3.97321032,3404.8,3404.0,0.0456128]
[1721316196438,1.03613032,3404.8,3404.0,0.0456128]
[1721316196712,2.93719,3404.7,3404.0,0.0456128]
[1721316197148,1.03613032,3404.8,3404.0,2.9833028]
[1721316197452,3.97316032,3404.8,3404.0,0.0456128]
[1721316197648,0.45680576,3404.7,3404.0,0.0456128]
[1721316197966,3.53178729,3405.0,3404.1,2.93761]
[1721316198260,2.93666,3405.3,3404.4,2.93734]
[1721316198464,0.59489729,3405.4,3404.4,2.93734]
[1721316198643,0.34463642,3405.4,3404.5,0.0454251]
[1721316198956,2.93653,3405.4,3404.5,0.0454251]
[1721316199195,0.59489729,3405.7,3404.8,2.3255]
[1721316199502,0.34462321,3405.7,3404.8,2.3255]
[1721316199641,2.93616,3405.8,3404.9,2.98210827]
[1721316199844,2.93616,3405.8,3404.9,0.04522827]
[1721316200079,1.56791654,3405.7,3404.9,0.04522827]
[1721316200273,2.9365,3405.5,3404.9,0.04522827]
[1721316200578,2.93636,3405.6,3404.9,0.04522827]
[1721316200779,2.93649,3405.5,3404.9,0.04522827]
[1721316200985,2.93662,3405.3,3404.9,0.04522827]
[1721316201275,2.93658,3405.4,3404.9,0.04522827]
[1721316201475,2.93661,3405.3,3404.9,0.04522827]
[1721316201690,3.58326473,3405.5,3404.9,0.04522827]
[1721316201890,0.59489729,3405.5,3404.9,0.04522827]
[1721316202053,3.53117729,3405.7,3404.9,0.04522827]
[1721316202379,2.93667,3405.3,3404.9,0.04522827]
[1721316203279,2.93648,3405.5,3404.9,0.04522827]
[1721316203458,0.59489729,3405.6,3404.9,0.04522827]
[1721316203656,2.93653,3405.4,3404.9,0.04522827]
[1721316203861,3.53118729,3405.7,3404.9,0.04522827]
[1721316204168,2.93629,3405.7,3404.9,2.98216827]
[1721316204496,0.59489729,3405.8,3404.9,2.98216827]
[1721316204497,0.34477638,3405.6,3405.0,2.9368]
[1721316204790,3.53105729,3405.8,3405.0,2.93678]
[1721316204791,0.59489729,3405.8,3405.0,2.93678]
[1721316205001,0.59489729,3405.8,3404.9,0.8697041]
[1721316205002,0.59489729,3405.9,3405.1,2.98182565]
[1721316205279,0.59489729,3405.9,3405.3,2.93658]
[1721316205452,0.59489729,3405.9,3405.1,2.98175565]
[1721316205656,0.59489729,3405.9,3405.4,0.04491808]
[1721316205981,0.89234594,3406.2,3405.1,6.48657315]
[1721316205982,3.53085729,3406.1,3405.1,6.48657315]
[1721316206284,0.97344461,3406.0,3405.2,2.93667]
[1721316206494,0.34481006,3405.9,3405.2,0.04501646]
[1721316206648,1.78469188,3406.4,3405.7,2.93618]
[1721316206851,1.18979459,3406.4,3405.8,0.293618]
[1721316207174,0.59489729,3406.7,3406.1,2.9359]
[1721316207369,1.18979459,3407.0,3405.8,0.04472136]
[1721316207370,0.34498216,3406.8,3406.2,2.9358]
[1721316207689,2.93513,3407.0,3406.2,2.98024006]
[1721316207909,3.52996729,3407.1,3406.3,2.93572]
[1721316208182,0.89234594,3407.2,3406.4,5.34644]
[1721316208183,0.34504715,3407.0,3406.4,5.34644]
[1721316208386,0.59489729,3407.2,3406.4,5.39068691]
[1721316208694,0.85466578,3407.2,3406.5,2.9355]
[1721316208914,0.59489729,3407.4,3406.5,0.04415983]
[1721316209193,0.59489729,3407.3,3406.6,2.93547]
[1721316209342,0.59489729,3407.4,3406.6,2.93547]
[1721316209543,0.34490586,3407.4,3406.7,0.04405716]
[1721316209751,0.34490586,3407.4,3406.7,2.97942716]
[1721316209949,2.9347,3407.5,3406.7,2.97944716]
[1721316210189,3.97043732,3407.4,3406.7,0.04405716]
[1721316210494,1.03564732,3407.4,3406.4,2.4108]
[1721316210796,3.52993729,3407.2,3406.4,2.4108]
[1721316211078,0.59489729,3407.3,3406.4,2.4108]
[1721316211281,7.12442459,3407.6,3406.5,2.9355]
[1721316211282,0.59489729,3407.5,3406.5,2.9355]
[1721316211444,0.3447816,3407.5,3406.5,2.9355]
[1721316211659,0.3447816,3407.5,3406.7,2.93533]
[1721316211863,6.52952729,3407.6,3406.8,2.9353]
[1721316211864,3.0,3407.6,3406.8,2.9353]
[1721316212101,6.52942729,3407.7,3406.8,2.9353]
[1721316212411,5.93453,3407.7,3406.9,0.04392241]
[1721316212563,2.93502,3407.2,3406.9,0.04392241]
[1721316212929,0.293502,3407.2,3407.0,0.04236373]
[1721316213061,3.228522,3407.2,3407.0,0.04236373]
[1721316213408,3.228522,3407.2,3406.4,2.4108]
[1721316213409,0.293502,3407.2,3406.4,2.4108]
[1721316213698,6.163542,3407.2,3407.1,0.04208511]
[1721316213902,2.93574,3406.3,3405.2,2.3889]
[1721316214091,2.93609,3405.9,3405.2,2.3889]
[1721316214288,2.93639,3405.6,3405.3,0.04012053]
[1721316214495,2.93617,3405.8,3404.7,2.93706]
[1721316214496,2.93617,3405.8,3404.8,2.93697]
[1721316214687,2.93617,3405.8,3405.4,0.04007134]
[1721316214889,0.59645752,3406.2,3405.1,2.93676]
[1721316215119,3.08502438,3406.1,3405.1,2.93676]
[1721316215316,2.93601,3406.0,3405.2,0.04016972]
[1721316215606,3.08502438,3406.1,3405.2,2.97680972]
[1721316215761,3.08502438,3406.1,3405.2,2.97683972]
[1721316215762,0.14911438,3406.1,3405.2,2.97683972]
[1721316215962,0.14911438,3406.1,3405.2,0.04016972]
[1721316216212,5.93567,3406.4,3405.2,0.04016972]
[1721316216213,3.59645752,3406.4,3405.2,3.56823569]
[1721316216515,3.59645752,3406.5,3405.4,2.93651]
[1721316216667,0.59645752,3406.7,3405.4,2.93651]
[1721316216975,1.5694273,3406.6,3405.5,0.04002216]
[1721316217304,1.5694273,3406.5,3405.2,0.59138597]
[1721316217516,1.51292014,3406.4,3405.6,0.03997298]
[1721316217800,0.53995036,3406.4,3405.2,2.93667]
[1721316218021,0.53995036,3406.4,3405.7,0.0399238]
[1721316218218,0.59645752,3406.6,3405.6,2.4042]
[1721316218377,0.94109859,3406.8,3405.9,2.93607]
[1721316218677,0.34460955,3406.7,3406.0,0.03977628]
[1721316218879,0.59645752,3406.8,3406.0,0.03977628]
[1721316219217,0.59645752,3407.0,3405.8,2.93616]
[1721316219370,1.22472552,3406.9,3406.1,0.03972711]
[1721316219579,1.22472552,3406.9,3405.8,3.763829]
[1721316219580,0.97289824,3406.8,3405.8,0.827669]
[1721316219887,0.34451832,3406.7,3405.9,0.03982545]
[1721316220296,2.93557,3406.5,3405.2,2.93665]
[1721316220495,0.34451832,3406.4,3405.4,2.93645]
[1721316220811,0.59645752,3406.6,3405.6,2.93626]
[1721316221011,0.59645752,3406.7,3405.6,2.93626]
[1721316221220,1.56901536,3406.7,3405.7,2.97623138]
[1721316221393,0.97255784,3406.6,3405.7,0.04005138]
[1721316221591,0.59645752,3406.7,3405.7,0.04005138]
[1721316221592,0.59645752,3406.7,3405.7,2.97628138]
[1721316221813,0.59645752,3406.8,3405.9,2.93605]
[1721316221979,2.93531,3406.8,3405.8,0.64998514]
[1721316222178,0.59645752,3406.9,3406.0,2.97589387]
[1721316222375,0.59645752,3407.0,3406.0,2.93597]
[1721316222615,0.59645752,3407.0,3406.1,0.03985035]
[1721316222616,3.27960051,3407.0,3406.1,0.03985035]
[1721316222782,0.34446978,3406.9,3406.1,0.03985035]
[1721316223644,2.93554,3406.6,3406.1,0.03985035]
[1721316223801,2.93561,3406.5,3406.1,0.03985035]
[1721316223999,2.93574,3406.3,3405.5,2.93638]
[1721316224345,2.93574,3406.3,3405.3,2.93657]
[1721316224346,2.93573,3406.3,3406.2,0.03978088]
[1721316224531,0.59645752,3406.8,3405.6,2.3755]
[1721316224532,0.59645752,3406.6,3405.6,2.3755]
[1721316224726,2.93532,3406.8,3405.9,2.93606]
[1721316224933,1.18979459,3407.2,3405.8,0.05870976]
[1721316224934,0.59645752,3407.0,3405.8,0.05870976]
[1721316225242,0.59645752,3407.3,3406.0,2.97588662]
[1721316225442,2.93521,3407.0,3406.1,2.9359]
[1721316225754,2.93499,3407.2,3406.3,2.93572]
[1721316226101,2.93499,3407.2,3406.4,0.03975072]
[1721316226336,2.93527,3406.9,3406.2,0.59118358]
[1721316226504,0.59645752,3407.2,3406.0,2.93594]
[1721316226505,0.59645752,3407.2,3406.5,0.03970011]
[1721316226706,2.93522,3406.9,3406.1,2.93585]
[1721316227032,3.53144752,3407.2,3406.6,0.03964951]
[1721316227235,2.93515,3407.0,3406.2,2.93582]
[1721316227413,2.93515,3407.0,3406.2,0.03984614]
[1721316227609,2.93527,3406.9,3406.7,0.03960036]
[1721316227935,2.93527,3406.9,3406.8,0.03955121]
[1721316228244,5.87056,3406.9,3406.8,0.03955121]
[1721316228398,2.93514,3407.0,3406.1,2.93584]
[1721316228602,2.93514,3407.0,3406.2,0.587185]
[1721316228900,2.93522,3406.9,3406.2,0.62703693]
[1721316229301,2.9357,3406.4,3405.7,0.24342148]
[1721316229542,2.9357,3406.4,3406.3,0.03840433]
[1721316229746,2.9357,3406.4,3405.6,5.31183]
[1721316230046,2.9357,3406.4,3405.7,0.03873839]
[1721316230226,0.59645752,3406.7,3405.7,0.03873839]
[1721316230576,0.89468629,3406.9,3405.0,2.93677]
[1721316230577,2.93608,3405.9,3405.0,2.93677]
[1721316230758,2.93608,3405.9,3405.8,0.03869066]
[1721316230931,2.93618,3405.8,3404.9,2.3562]
[1721316231127,2.93608,3405.9,3404.9,2.3562]
[1721316231128,2.93632,3405.7,3404.9,2.3562]
[1721316231354,2.9361,3405.9,3405.0,3.466146]
[1721316231628,0.59645752,3406.3,3405.2,2.93668]
[1721316231629,2.93603,3406.0,3405.2,2.93668]
[1721316232068,2.93603,3406.0,3405.3,0.03893656]
[1721316232069,2.93609,3405.9,3405.3,0.03893656]
[1721316232374,2.93631,3405.7,3405.0,0.529316]
[1721316232679,2.93612,3405.9,3405.0,3.466166]
[1721316232832,2.93612,3405.9,3405.1,3.85170755]
[1721316233059,2.93599,3406.0,3405.2,2.93666]
[1721316233263,2.93575,3406.3,3405.3,2.93658]
[1721316233498,2.93575,3406.3,3405.4,2.9365]
[1721316233660,2.93583,3406.2,3405.4,3.61530684]
[1721316234061,2.93583,3406.2,3405.5,0.03883819]
[1721316234361,2.9358,3406.3,3405.5,0.03883819]
[1721316234909,2.93564,3406.5,3405.7,2.93624]
[1721316235089,2.93548,3406.6,3405.8,3.52730882]
[1721316235294,2.93548,3406.6,3405.8,3.56599948]
[1721316236308,2.93573,3406.3,3405.8,0.03869066]
[1721316236692,2.93573,3406.3,3405.5,2.93642]
[1721316236865,2.93556,3406.5,3405.9,0.03864148]
[1721316237196,3.28079313,3406.4,3405.5,2.93635]
[1721316237504,2.93577,3406.3,3405.1,3.8126626]
[1721316237661,2.9356,3406.5,3405.6,0.03884108]
[1721316237862,2.93583,3406.2,3405.4,2.93646]
[1721316238066,2.9356,3406.5,3405.7,0.03877744]
[1721316238067,0.59645752,3406.5,3405.7,0.03877744]
[1721316238300,2.93596,3406.1,3405.2,3.55356626]
[1721316238504,2.93583,3406.2,3405.8,0.03872826]
[1721316238801,2.93583,3406.2,3405.4,2.9365]
[1721316239101,0.59645752,3406.4,3405.5,2.93642]
[1721316239102,3.53210752,3406.4,3405.5,2.93642]
[1721316239307,1.57086623,3406.3,3405.5,2.9752958]
[1721316239510,2.93565,3406.4,3405.6,2.93633]
[1721316239511,3.53210752,3406.4,3405.6,2.93633]
[1721316239660,2.93565,3406.4,3405.5,0.0388758]
[1721316239862,2.93565,3406.4,3405.7,0.03890757]
[1721316240065,2.93574,3406.3,3405.6,0.03895675]
[1721316240264,3.83020629,3406.6,3406.1,2.93588]
[1721316240265,0.59645752,3406.6,3406.1,2.93588]
[1721316240466,4.4282599,3407.0,3406.2,2.93581]
[1721316240467,4.42631381,3407.0,3406.2,2.93581]
[1721316240682,2.93517,3407.0,3406.2,2.97447172]
[1721316240887,0.59645752,3407.1,3406.2,0.03866172]
[1721316240888,2.93504,3407.1,3406.2,0.03866172]
[1721316241089,0.59645752,3407.2,3406.5,2.93554]
[1721316241339,3.53132752,3407.3,3406.5,2.93554]
[1721316241478,0.34521197,3407.2,3406.6,0.03841592]
[1721316241679,4.16091369,3407.2,3406.6,0.03841592]
[1721316241895,0.59645752,3407.3,3406.6,2.93546]
[1721316242100,0.59645752,3407.3,3406.6,2.9354]
[1721316242297,0.59645752,3407.4,3406.7,0.03832339]
[1721316242499,1.34437993,3407.4,3406.7,0.03832339]
[1721316242707,2.93512,3407.1,3406.7,0.03832339]
[1721316242921,3.53139752,3407.3,3406.3,5.87138]
[1721316243129,4.5062098,3407.2,3406.8,0.03827424]
[1721316243341,2.93514,3407.0,3406.3,2.93565]
[1721316243496,5.87035,3407.0,3406.9,0.0382251]
[1721316243845,2.93531,3406.8,3405.7,2.93619]
[1721316244133,0.97481631,3406.7,3405.9,2.93602]
[1721316244444,2.93539,3406.7,3405.8,0.03876584]
[1721316244601,3.910242,3406.6,3406.0,0.03866749]
[1721316244797,3.53288777,3406.8,3406.0,0.03866749]
[1721316245133,3.91011918,3406.7,3405.9,2.93603]
[1721316245303,0.97472918,3406.6,3406.0,2.93599]
[1721316245508,0.59757777,3406.8,3406.1,2.93588]
[1721316245716,0.59757777,3406.8,3406.0,2.97465749]